bitfinex/quotes_SOLUSD_20251127
["timestamp","ask_amount","ask_price","bid_price","bid_amount"]
[1764211560016,16.308864,143.94,143.9,500.0]
[1764211560530,5.91614509,143.95,143.9,499.66]
[1764211560531,11.93041315,143.91,143.9,499.66]
[1764211560705,31.31927715,143.91,143.9,499.66]
[1764211560905,22.54920058,143.91,143.9,499.66]
[1764211561305,22.54920058,143.91,143.9,463.11014305]
[1764211561528,22.54920058,143.91,143.9,426.64461669]
[1764211561719,36.02191949,143.91,143.9,426.64461669]
[1764211561921,22.54920058,143.91,143.9,426.64461669]
[1764211562121,24.54920057,143.91,143.9,257.9365141]
[1764211562431,9.68426806,143.9,143.89,1e-08]
[1764211562629,9.68426806,143.9,143.84,0.2]
[1764211562630,16.308864,143.87,143.84,0.2]
[1764211562932,9.78783087,143.85,143.84,0.2]
[1764211563229,0.59,143.91,143.85,0.68]
[1764211563414,19.09389446,143.88,143.85,0.68]
[1764211563622,16.308864,143.88,143.85,0.68]
[1764211564333,3.42614509,143.93,143.85,0.68]
[1764211564532,121.63175235,143.92,143.86,7.54180743]
[1764211564719,16.308864,143.91,143.86,7.54180743]
[1764211564915,16.308864,143.91,143.87,8.22180743]
[1764211565115,3.08,143.91,143.88,7.54180743]
[1764211565333,3.08,143.91,143.88,8.22180743]
[1764211565630,7.54180743,143.89,143.84,0.2]
[1764211565834,16.308864,143.87,143.84,0.2]
[1764211566223,16.308864,143.87,143.84,0.88]
[1764211567108,23.25989682,143.87,143.84,0.88]
[1764211569137,23.25989682,143.87,143.84,0.91]
[1764211569353,16.35175235,143.85,143.84,1e-08]
[1764211569515,12.17426806,143.85,143.84,1e-08]
[1764211569710,20.30607549,143.85,143.84,1e-08]
[1764211570507,20.30607549,143.85,143.78,0.2]
[1764211570508,16.308864,143.79,143.78,0.2]
[1764211571030,23.26345054,143.79,143.78,0.2]
[1764211571928,16.308864,143.79,143.78,0.2]
[1764211572112,16.308864,143.79,143.78,0.92]
[1764211572635,16.308864,143.79,143.78,0.2]
[1764211573349,6.95219651,143.84,143.78,8.46180743]
[1764211573350,3.08,143.84,143.78,8.46180743]
[1764211573715,16.308864,143.82,143.79,8.26180743]
[1764211574308,16.308864,143.82,143.8,0.72]
[1764211575436,7.54180743,143.86,143.81,7.54180743]
[1764211575636,8.80994492,143.84,143.78,0.2]
[1764211575932,32.66061635,143.79,143.78,0.2]
[1764211576234,36.04493949,143.79,143.78,0.2]
[1764211576535,33.97624442,143.79,143.78,0.2]
[1764211577143,40.93083096,143.79,143.78,0.2]
[1764211579819,37.83083096,143.79,143.78,0.2]
[1764211580020,40.93083096,143.79,143.78,0.2]
[1764211580241,16.308864,143.79,143.78,0.2]
[1764211580432,19.408864,143.79,143.78,0.2]
[1764211580627,26.36345054,143.79,143.78,0.2]
[1764211581648,19.408864,143.79,143.78,0.2]
[1764211581846,26.36345054,143.79,143.78,0.2]
[1764211582546,6.95216907,143.84,143.78,0.92]
[1764211582736,3.1,143.83,143.78,12.75814418]
[1764211582931,16.308864,143.81,143.79,0.72]
[1764211583135,3.1,143.83,143.79,5.60311236]
[1764211583326,3.1,143.83,143.79,0.72]
[1764211583649,10.05277238,143.83,143.8,0.72]
[1764211583855,3.1,143.83,143.8,0.72]
[1764211584624,10.05266099,143.83,143.8,0.72]
[1764211584836,10.05266099,143.83,143.78,5.80311236]
[1764211585024,6.95266099,143.83,143.79,0.72]
[1764211585626,7.54266099,143.83,143.79,0.72]
[1764211586252,6.95266099,143.83,143.79,0.72]
[1764211586628,26.36124394,143.84,143.79,5.60311236]
[1764211587041,16.308864,143.84,143.8,0.72]
[1764211587222,16.308864,143.84,143.81,4.88311236]
[1764211587635,16.308864,143.84,143.82,0.72]
[1764211587831,16.308864,143.84,143.82,5.60311236]
[1764211588034,3.1,143.86,143.82,5.60311236]
[1764211588243,10.05120292,143.86,143.83,0.72]
[1764211588446,107.08311236,143.87,143.83,0.72]
[1764211588836,6.95124466,143.86,143.83,0.72]
[1764211589040,12.42435702,143.86,143.81,0.72]
[1764211589248,4.88311236,143.85,143.81,0.72]
[1764211589445,16.308864,143.85,143.83,4.88311236]
[1764211589649,16.308864,143.85,143.84,0.72]
[1764211589947,16.308864,143.86,143.84,0.72]
[1764211591650,22.84031074,143.95,143.85,4.88311236]
[1764211591848,16.308864,143.92,143.89,4.88311236]
[1764211592050,28.00405492,143.95,143.9,0.72]
[1764211592349,16.308864,143.92,143.9,0.72]
[1764211593127,23.25742478,143.92,143.9,0.72]
[1764211593327,4.88311236,143.91,143.86,0.72]
[1764211593547,4.88311236,143.9,143.86,0.72]
[1764211593934,16.308864,143.89,143.86,0.72]
[1764211594754,23.25899324,143.89,143.86,0.72]
[1764211595656,16.308864,143.89,143.87,4.88311236]
[1764211595951,16.308864,143.89,143.86,5.60311236]
[1764211596854,24.33173673,143.92,143.87,0.72]
[1764211596855,6.94935383,143.9,143.87,0.72]
[1764211597440,16.308864,143.91,143.87,0.72]
[1764211597645,117.49458763,145.29,143.87,0.72]
[1764211597646,11.90994492,143.94,143.88,4.88311236]
[1764211597840,11.90994492,143.94,143.87,0.72]
[1764211597841,16.308864,143.92,143.87,0.72]
[1764211598044,16.308864,143.92,143.84,10.05209226]
[1764211598347,11.90994492,143.91,143.86,0.72]
[1764211598540,11.90994492,143.91,143.86,5.60311236]
[1764211598736,6.94927032,143.9,143.86,0.72]
[1764211598939,6.94927032,143.9,143.87,0.72]
[1764211599159,6.94927032,143.9,143.86,0.72]
[1764211599337,10.04887769,143.91,143.87,0.72]
[1764211600736,119.098864,143.9,143.84,3.76]
[1764211600936,123.98197636,143.9,143.84,0.66]
[1764211601254,123.98197636,143.9,143.85,0.66]
[1764211602254,4.88311236,143.88,143.82,0.66]
[1764211602447,6.95071939,143.87,143.82,5.54311236]
[1764211602836,16.308864,143.88,143.84,4.88311236]
[1764211603356,16.308864,143.88,143.85,0.66]
[1764211604656,23.25951586,143.88,143.85,0.66]
[1764211604855,23.25951586,143.88,143.83,0.66]
[1764211605157,23.25951586,143.88,143.84,0.66]
[1764211605353,45.51821899,143.88,143.81,0.66]
[1764211605556,45.51821899,143.88,143.82,0.66]
[1764211605760,40.63510663,143.88,143.82,5.54311236]
[1764211606054,40.63510663,143.88,143.82,0.66]
[1764211606259,40.63510663,143.88,143.83,0.66]
[1764211607156,23.25917242,143.88,143.84,4.88311236]
[1764211607355,125.45917242,143.88,143.83,5.54311236]
[1764211607561,130.34228478,143.88,143.83,0.66]
[1764211607861,130.93228478,143.88,143.84,0.66]
[1764211608053,126.04917242,143.88,143.84,0.66]
[1764211609466,147.71787555,143.88,143.84,0.66]
[1764211610469,125.45917242,143.88,143.84,0.66]
[1764211611446,125.45917242,143.88,143.84,7.61214061]
[1764211611958,125.45917242,143.88,143.85,0.66]
[1764211612840,3.1,143.89,143.86,4.88311236]
[1764211613038,23.84798082,143.91,143.85,12.49479419]
[1764211613243,28.73109318,143.91,143.86,0.66]
[1764211613438,4.88311236,143.89,143.84,0.66]
[1764211613649,7.98311236,143.89,143.84,0.66]
[1764211613966,8.57311236,143.89,143.84,0.66]
[1764211614667,5.47311236,143.88,143.84,0.66]
[1764211614849,6.95071939,143.87,143.84,0.66]
[1764211616164,7.54071939,143.87,143.83,0.66]
[1764211616354,6.95071939,143.87,143.82,5.54311236]
[1764211616751,6.95071939,143.87,143.8,3.1]
[1764211616752,6.95037165,143.88,143.8,78.1]
[1764211616957,3.1,143.89,143.83,4.88311236]
[1764211618460,10.72975328,143.89,143.84,6.95216907]
[1764211618955,10.72975328,143.89,143.85,0.66]
[1764211620262,112.92975328,143.89,143.85,0.66]
[1764211620459,0.68,143.88,143.83,0.66]
[1764211621672,6.95071939,143.87,143.83,0.66]
[1764211622764,6.95071939,143.87,143.83,7.61256964]
[1764211623065,6.95071939,143.87,143.84,0.66]
[1764211624071,7.6302363,143.88,143.84,0.66]
[1764211625076,122.6743832,143.89,143.84,9.43202574]
[1764211625077,109.14989577,143.89,143.84,9.43202574]
[1764211625261,109.82989577,143.89,143.84,9.43202574]
[1764211625462,109.82989577,143.89,143.85,0.66]
[1764211627382,102.88,143.89,143.85,0.66]
[1764211627987,109.82975674,143.89,143.85,0.66]
[1764211631076,102.2,143.89,143.85,0.66]
[1764211631278,35.86818779,143.9,143.85,0.66]
[1764211631279,102.2,143.93,143.88,1.82000305]
[1764211631582,118.508864,143.93,143.88,1.82000305]
[1764211631774,102.2,143.93,143.89,0.67]
[1764211631979,102.9,143.93,143.89,0.67]
[1764211632182,0.7,143.92,143.89,0.67]
[1764211632367,0.7,143.92,143.88,0.67]
[1764211633295,0.7,143.92,143.88,7.62013948]
[1764211633888,0.7,143.92,143.89,0.67]
[1764211634587,102.2,143.93,143.89,0.67]
[1764211634893,102.9,143.93,143.89,2.49000305]
[1764211635586,102.9,143.93,143.9,0.67]
[1764211636279,109.14783184,143.93,143.89,0.67]
[1764211636475,0.7,143.92,143.89,0.67]
[1764211638568,102.2,143.93,143.89,0.67]
[1764211638771,102.2,143.93,143.91,2.84175453]
[1764211639170,102.2,143.93,143.91,0.67]
[1764211641799,102.2,143.93,143.91,3.51175453]
[1764211642291,102.2,143.93,143.91,2.84175453]
[1764211642476,102.2,143.93,143.91,3.51175453]
[1764211643592,102.2,143.93,143.91,2.84175453]
[1764211643800,102.2,143.93,143.91,3.51175453]
[1764211644994,102.2,143.93,143.92,2.84175453]
[1764211645199,102.2,143.93,143.91,3.51175453]
[1764211645704,102.2,143.93,143.92,3.51175453]
[1764211646497,7.64638894,143.96,143.92,3.51175453]
[1764211646696,10.02593702,143.97,143.93,3.51175453]
[1764211646876,10.72593702,143.97,143.93,3.51175453]
[1764211647074,0.7,143.96,143.93,0.67]
[1764211647284,0.7,143.96,143.93,3.51175453]
[1764211647484,0.7,143.96,143.93,2.84175453]
[1764211648172,0.7,143.96,143.93,3.51175453]
[1764211649394,7.64593702,143.97,143.93,3.51175453]
[1764211649699,16.308864,143.98,143.94,3.51175453]
[1764211650002,120.27317096,143.99,143.94,3.51175453]
[1764211650003,0.7,143.99,143.95,2.84175453]
[1764211650297,0.7,143.99,143.95,3.51175453]
[1764211650491,29.26096966,144.01,143.97,2.84175453]
[1764211650492,20.45102474,144.01,143.97,2.84175453]
[1764211650689,20.45102474,144.01,143.98,2.84175453]
[1764211650891,20.45102474,144.01,143.93,75.0]
[1764211650892,16.308864,143.99,143.93,0.67]
[1764211651100,2.84175453,143.95,143.9,0.67]
[1764211651290,125.13061853,143.98,143.91,3.51175453]
[1764211651489,0.7,143.97,143.92,2.84175453]
[1764211651802,0.7,143.97,143.93,2.84175453]
[1764211651986,0.7,143.97,143.93,0.67]
[1764211652183,0.7,143.97,143.93,3.51175453]
[1764211652501,0.7,143.97,143.92,5.92175453]
[1764211652689,0.7,143.97,143.92,6.59175453]
[1764211653004,7.64626009,143.97,143.92,13.54005048]
[1764211653189,7.64626009,143.97,143.92,10.69829595]
[1764211653389,0.7,143.96,143.92,3.08]
[1764211653584,3.54175453,143.96,143.9,7.61914047]
[1764211653784,0.7,143.96,143.9,10.460895]
[1764211653997,0.7,143.95,143.91,0.67]
[1764211654508,45.19712658,143.97,143.91,10.46053863]
[1764211654509,7.64673163,143.96,143.91,10.46053863]
[1764211655109,0.7,143.95,143.92,0.67]
[1764211655481,7.64673163,143.96,143.92,0.67]
[1764211655800,18.0443832,143.97,143.93,2.84175453]
[1764211655801,6.9460218,143.97,143.93,2.84175453]
[1764211656001,0.7,143.96,143.92,3.51175453]
[1764211656590,0.7,143.96,143.93,0.67]
[1764211656779,7.6460218,143.97,143.93,0.67]
[1764211657105,0.7,143.96,143.93,0.67]
[1764211657489,7.6460218,143.97,143.93,3.51175453]
[1764211657884,122.288864,143.98,143.94,0.67]
[1764211658208,0.7,143.97,143.94,0.67]
[1764211658401,0.7,143.97,143.93,9.78944123]
[1764211658598,0.7,143.97,143.93,0.67]
[1764211659198,7.64590514,143.97,143.92,2.84175453]
[1764211659507,7.64590514,143.97,143.93,0.67]
[1764211659808,7.62590514,143.97,143.93,0.67]
[1764211660103,118.508864,143.98,143.95,2.84175453]
[1764211660304,118.508864,143.98,143.94,2.84175453]
[1764211660305,119.188864,143.98,143.94,2.84175453]
[1764211660695,119.188864,143.98,143.95,3.52175453]
[1764211661510,118.508864,143.98,143.96,0.68]
[1764211661887,118.508864,143.98,143.95,3.52175453]
[1764211662207,118.508864,143.98,143.95,2.84175453]
[1764211662504,118.508864,143.98,143.96,0.68]
[1764211662708,118.508864,143.98,143.95,3.52175453]
[1764211663010,102.2,143.98,143.96,0.68]
[1764211663413,102.2,143.98,143.97,2.84175453]
[1764211663794,102.2,143.98,143.97,3.52175453]
[1764211664809,8.80994492,143.97,143.88,0.68]
[1764211665113,9.79015215,143.92,143.87,0.68]
[1764211665314,6.94839762,143.92,143.87,0.68]
[1764211665510,7.62839762,143.92,143.87,3.52175453]
[1764211665808,0.68,143.92,143.87,3.52175453]
[1764211666017,0.68,143.92,143.88,3.52175453]
[1764211666194,0.68,143.92,143.88,0.68]
[1764211666908,0.68,143.92,143.88,3.52175453]
[1764211667099,0.68,143.92,143.89,0.68]
[1764211667602,16.308864,143.94,143.9,2.84175453]
[1764211667802,7.62676537,143.96,143.9,2.84175453]
[1764211667996,7.62676537,143.96,143.91,3.52175453]
[1764211668202,0.68,143.95,143.91,0.68]
[1764211668909,7.62693729,143.95,143.91,0.68]
[1764211669607,16.308864,143.97,143.91,7.62872774]
[1764211669807,16.308864,143.97,143.91,10.47048227]
[1764211670014,0.68,143.96,143.91,10.47048227]
[1764211670191,0.68,143.96,143.92,0.68]
[1764211670506,23.93501741,143.97,143.92,3.52175453]
[1764211670818,16.308864,143.97,143.93,9.7894852]
[1764211671023,16.308864,143.97,143.93,10.4694852]
[1764211671308,7.62544764,143.98,143.94,0.68]
[1764211671708,0.68,143.97,143.94,0.68]
[1764211671902,0.68,143.97,143.91,0.68]
[1764211672214,102.88,143.97,143.91,0.68]
[1764211672516,2.84175453,143.94,143.9,3.08]
[1764211672889,7.62784924,143.93,143.85,91.59318714]
[1764211673200,2.84175453,143.88,143.83,0.68]
[1764211673390,2.84175453,143.88,143.82,3.78]
[1764211673591,16.308864,143.89,143.82,3.78]
[1764211673592,3.52175453,143.87,143.82,3.78]
[1764211673790,2.84175453,143.86,143.82,3.1]
[1764211674115,0.68,143.86,143.82,3.78]
[1764211674995,7.63122614,143.86,143.82,3.78]
[1764211675395,0.68,143.86,143.82,3.78]
[1764211677402,0.68,143.86,143.82,10.73312944]
[1764211678316,0.68,143.86,143.82,10.05312944]
[1764211678519,0.68,143.86,143.83,0.68]
[1764211678702,0.68,143.87,143.83,0.68]
[1764211678902,57.21567816,143.89,143.83,0.68]
[1764211679098,16.308864,143.89,143.84,7.54656033]
[1764211679422,23.25865775,143.89,143.84,6.95187228]
[1764211679721,7.62979375,143.89,143.85,0.68]
[1764211680218,0.68,143.89,143.85,0.68]
[1764211680423,7.62978931,143.89,143.85,0.68]
[1764211680721,109.1493176,143.9,143.85,0.68]
[1764211680901,102.88,143.9,143.85,0.68]
[1764211681107,0.68,143.89,143.85,0.68]
[1764211681313,7.62993615,143.89,143.85,0.68]
[1764211682312,7.62993615,143.89,143.85,7.63161433]
[1764211682832,7.62993615,143.89,143.85,0.68]
[1764211683803,0.68,143.88,143.84,6.95179563]
[1764211684099,0.68,143.88,143.84,7.63179563]
[1764211684297,109.8293344,143.9,143.85,0.68]
[1764211684699,0.68,143.89,143.85,0.68]
[1764211685633,102.2,143.9,143.85,15.17811628]
[1764211685803,102.88,143.9,143.85,15.17811628]
[1764211686127,0.68,143.89,143.84,14.49871075]
[1764211686331,0.68,143.89,143.84,7.63215042]
[1764211686529,8.22656033,143.89,143.82,0.68]
[1764211686714,8.22656033,143.89,143.82,3.78]
[1764211686914,0.68,143.88,143.82,10.7329989]
[1764211687126,8.22656033,143.88,143.83,0.68]
[1764211687509,15.17694632,143.88,143.83,7.63262071]
[1764211687833,15.17694632,143.88,143.84,0.68]
[1764211688023,0.68,143.87,143.84,0.68]
[1764211689404,0.68,143.87,143.82,3.1]
[1764211689405,117.37735046,143.87,143.82,3.1]
[1764211689623,7.54656033,143.85,143.82,3.1]
[1764211689814,7.54656033,143.85,143.79,3.79]
[1764211690128,0.72,143.84,143.79,3.79]
[1764211690319,10.64656033,143.86,143.8,0.66]
[1764211690518,0.72,143.85,143.8,0.66]
[1764211690817,7.67173504,143.85,143.8,7.61405416]
[1764211691211,7.67173504,143.85,143.81,0.66]
[1764211691508,0.72,143.84,143.81,0.66]
[1764211692025,10.64656033,143.86,143.81,0.66]
[1764211692026,10.05130668,143.86,143.81,0.66]
[1764211692231,0.72,143.85,143.81,0.66]
[1764211693529,7.67197503,143.85,143.8,0.66]
[1764211693732,0.72,143.84,143.8,0.66]
[1764211694208,0.72,143.84,143.79,10.05447425]
[1764211694529,0.72,143.84,143.79,3.76]
[1764211694911,0.72,143.84,143.79,3.1]
[1764211694912,7.54656033,143.83,143.79,3.1]
[1764211695225,10.62656033,143.83,143.78,0.2]
[1764211695428,7.67313586,143.82,143.78,0.2]
[1764211695627,15.21969619,143.82,143.78,0.2]
[1764211695828,0.72,143.81,143.78,0.2]
[1764211696417,0.72,143.81,143.78,0.86]
[1764211697013,0.72,143.81,143.78,0.2]
[1764211697436,0.72,143.82,143.78,0.86]
[1764211697731,26.34162285,143.83,143.78,0.86]
[1764211697927,0.72,143.82,143.79,0.66]
[1764211698126,0.72,143.82,143.78,3.70604745]
[1764211698312,0.72,143.82,143.78,0.86]
[1764211698806,0.72,143.82,143.78,0.2]
[1764211699010,16.308864,143.83,143.79,2.48143454]
[1764211699235,0.72,143.85,143.79,2.48143454]
[1764211699408,9.49312032,143.85,143.8,0.66]
[1764211699813,0.72,143.84,143.8,0.66]
[1764211700017,0.72,143.84,143.78,10.89499486]
[1764211700212,1.82143454,143.8,143.78,0.2]
[1764211700426,1.82143454,143.79,143.78,0.2]
[1764211700818,0.72,143.79,143.78,0.2]
[1764211701222,2.54143454,143.79,143.78,0.2]
[1764211701440,9.78034422,143.79,143.78,0.2]
[1764211701642,26.08920822,143.79,143.78,0.2]
[1764211701930,16.59318714,143.78,143.77,0.2]
[1764211702141,16.59318714,143.78,143.71,0.2]
[1764211702142,9.45994492,143.77,143.71,0.2]
[1764211702437,9.45994492,143.77,143.69,0.2]
[1764211702438,9.09426806,143.7,143.69,0.2]
[1764211702734,12.19426806,143.7,143.69,0.2]
[1764211702933,12.84426806,143.7,143.69,0.2]
[1764211703133,8.80994492,143.67,143.66,0.2]
[1764211703343,12.19426806,143.67,143.66,0.2]
[1764211703638,21.62609795,143.67,143.66,0.2]
[1764211703838,12.55994492,143.67,143.66,0.2]
[1764211704153,21.34177481,143.67,143.66,0.2]
[1764211704436,21.62609795,143.67,143.66,0.2]
[1764211704644,24.69651161,143.67,143.66,0.2]
[1764211705434,40.72105247,143.67,143.66,0.2]
[1764211706643,41.00537561,143.67,143.66,0.2]
[1764211707335,24.69651161,143.67,143.66,0.2]
[1764211709221,19.80466341,143.67,143.66,0.2]
[1764211709421,24.69651161,143.67,143.66,0.2]
[1764211712420,27.48581463,143.67,143.66,0.2]
[1764211712623,0.28432314,143.66,143.51,0.2]
[1764211712850,21.52796445,143.66,143.65,1e-08]
[1764211713148,25.40313206,143.62,143.56,0.66]
[1764211713474,16.308864,143.58,143.56,0.66]
[1764211714321,23.27372549,143.58,143.56,0.66]
[1764211714930,16.308864,143.58,143.56,0.66]
[1764211715136,16.308864,143.59,143.56,0.66]
[1764211715524,11.85797892,143.63,143.56,7.62555435]
[1764211715726,11.85797892,143.63,143.56,12.51740255]
[1764211715727,19.408864,143.62,143.56,12.51740255]
[1764211715944,26.37174433,143.62,143.57,7.62518745]
[1764211716148,16.308864,143.62,143.57,12.51703565]
[1764211716449,16.308864,143.62,143.58,0.66]
[1764211717330,3.1,143.64,143.58,5.5518482]
[1764211717529,19.408864,143.64,143.58,5.5518482]
[1764211717848,19.408864,143.64,143.59,0.66]
[1764211718028,31.26270615,143.64,143.59,0.66]
[1764211718452,26.37085795,143.64,143.59,0.66]
[1764211718843,31.26270615,143.64,143.59,0.66]
[1764211719039,31.2625843,143.64,143.59,0.66]
[1764211719245,31.9125843,143.64,143.59,0.66]
[1764211719458,31.2625843,143.64,143.59,0.66]
[1764211720156,16.308864,143.6,143.56,0.71]
[1764211720340,16.308864,143.6,143.57,0.71]
[1764211721953,16.308864,143.6,143.57,5.6018482]
[1764211722152,23.27180659,143.62,143.57,5.6018482]
[1764211722353,23.27180659,143.62,143.58,0.71]
[1764211723062,6.96294259,143.62,143.58,0.71]
[1764211723369,45.57070116,143.62,143.56,0.71]
[1764211723657,46.22070116,143.62,143.57,0.71]
[1764211724363,45.57070116,143.62,143.57,0.71]
[1764211724935,46.22070116,143.62,143.57,0.71]
[1764211725346,148.42070116,143.62,143.57,0.71]
[1764211725964,8.80994492,143.61,143.57,0.71]
[1764211726142,6.96427327,143.59,143.57,0.71]
[1764211728643,3.1,143.6,143.57,0.71]
[1764211728962,6.96330339,143.61,143.57,0.71]
[1764211729267,10.06330339,143.61,143.57,0.71]
[1764211729462,0.65,143.6,143.55,0.71]
[1764211729769,0.65,143.6,143.54,0.2]
[1764211729949,0.65,143.6,143.56,0.71]
[1764211730463,27.47156186,143.61,143.56,0.71]
[1764211730654,0.65,143.6,143.56,0.71]
[1764211731044,27.47156186,143.61,143.56,0.71]
[1764211734048,10.71330339,143.61,143.56,0.71]
[1764211734243,16.308864,143.58,143.54,0.91]
[1764211734450,1.82717227,143.56,143.54,0.2]
[1764211734964,1.82717227,143.55,143.54,0.2]
[1764211735149,8.79338613,143.55,143.54,0.2]
[1764211735660,21.35333105,143.55,143.54,0.2]
[1764211736656,24.42544831,143.55,143.54,0.2]
[1764211736851,41.01863545,143.55,143.54,0.2]
[1764211737562,26.37507786,143.55,143.54,0.2]
[1764211737959,40.08431231,143.55,143.54,0.2]
[1764211738359,26.37507786,143.55,143.54,0.2]
[1764211738781,31.27436739,143.55,143.54,0.2]
[1764211739847,23.27507786,143.55,143.54,0.2]
[1764211740052,41.79,143.61,143.54,0.91]
[1764211740053,22.31011988,143.59,143.54,0.91]
[1764211740256,6.96490045,143.58,143.54,0.91]
[1764211740565,21.20815353,143.55,143.54,0.2]
[1764211742178,10.06524343,143.57,143.54,0.91]
[1764211742352,7.61859666,143.61,143.55,0.71]
[1764211742557,6.96281854,143.62,143.56,4.89928953]
[1764211742760,16.308864,143.61,143.55,5.60928953]
[1764211743170,4.89928953,143.6,143.56,0.71]
[1764211743764,7.99928953,143.6,143.56,0.71]
[1764211744056,6.96427327,143.59,143.56,0.71]
[1764211744271,11.8635628,143.59,143.56,0.71]
[1764211744473,4.89928953,143.58,143.54,0.91]
[1764211745072,4.89928953,143.58,143.55,0.71]
[1764211745270,11.8635628,143.59,143.55,0.71]
[1764211745966,6.96427327,143.59,143.55,0.71]
[1764211746486,7.99928953,143.6,143.55,0.71]
[1764211746487,16.308864,143.6,143.55,7.6762087]
[1764211746675,16.308864,143.6,143.55,12.57549823]
[1764211746986,16.308864,143.6,143.56,0.71]
[1764211747557,6.96427327,143.59,143.56,0.71]
[1764211747857,11.8635628,143.59,143.55,0.71]
[1764211748057,3.1,143.58,143.55,0.71]
[1764211749590,16.308864,143.6,143.55,12.57545966]
[1764211749760,16.308864,143.6,143.56,4.89928953]
[1764211749961,16.308864,143.6,143.56,5.61928953]
[1764211750265,16.308864,143.6,143.57,0.72]
[1764211752776,3.75,143.59,143.54,0.89]
[1764211752958,8.64928953,143.59,143.54,0.89]
[1764211753156,6.96475832,143.58,143.55,0.69]
[1764211754081,10.06440166,143.59,143.55,0.69]
[1764211755002,26.3727329,143.6,143.55,12.55544644]
[1764211755201,16.308864,143.56,143.54,0.2]
[1764211755388,16.308864,143.55,143.54,0.2]
[1764211755880,109.16826143,143.59,143.54,0.89]
[1764211756084,19.408864,143.58,143.54,12.75598023]
[1764211756401,16.308864,143.58,143.55,0.69]
[1764211757684,23.27369804,143.58,143.55,0.69]
[1764211760976,102.2,143.59,143.55,0.69]
[1764211761185,112.91436178,143.59,143.55,0.69]
[1764211761495,112.26436178,143.59,143.55,0.69]
[1764211761888,105.3,143.59,143.55,0.69]
[1764211762098,109.16434959,143.59,143.55,7.65621322]
[1764211762398,109.16434959,143.59,143.55,0.69]
[1764211762589,109.16434959,143.59,143.56,0.69]
[1764211762990,102.2,143.59,143.56,0.69]
[1764211765587,17.40366954,143.65,143.57,2.85563941]
[1764211765780,3.1,143.63,143.58,2.85563941]
[1764211765980,16.308864,143.62,143.58,2.85563941]
[1764211766287,16.308864,143.62,143.59,0.69]
[1764211767201,0.28432314,143.67,143.59,0.69]
[1764211767202,0.65,143.71,143.62,75.0]
[1764211767410,3.1,143.7,143.64,2.85563941]
[1764211767592,16.308864,143.68,143.64,2.85563941]
[1764211767790,3.1,143.7,143.65,0.69]
[1764211768016,16.308864,143.68,143.65,0.69]
[1764211768793,0.65,143.71,143.65,8.25388549]
[1764211768995,18.86819904,143.72,143.65,15.21481424]
[1764211769201,16.308864,143.71,143.66,0.69]
[1764211769405,16.308864,143.71,143.66,8.25388549]
[1764211769709,16.958864,143.71,143.66,0.69]
[1764211769891,8.21388549,143.7,143.66,0.69]
[1764211770087,27.62274949,143.71,143.66,0.69]
[1764211770898,20.058864,143.71,143.66,0.69]
[1764211771084,6.95894224,143.7,143.66,0.69]
[1764211771280,3.1,143.71,143.66,15.21471612]
[1764211771695,3.1,143.71,143.67,0.69]
[1764211771894,11.31388549,143.71,143.67,0.69]
[1764211772298,3.1,143.71,143.67,0.69]
[1764211773100,10.05883621,143.71,143.67,0.69]
[1764211773297,19.408864,143.73,143.67,7.65034821]
[1764211773695,7.56388549,143.68,143.6,7.56388549]